bitfinex/quotes_ETHUSD_20260209
["timestamp","ask_amount","ask_price","bid_price","bid_amount"]
[1770670564588,2.17601032,2129.8,2129.1,4.69659966]
[1770670564796,1.00218811,2129.7,2129.1,4.69659966]
[1770670564966,5.25368489,2129.6,2128.9,0.0011]
[1770670565168,1.97268489,2129.5,2128.9,0.0011]
[1770670565366,1.00218811,2129.4,2128.9,0.0011]
[1770670565566,1.00218811,2129.3,2128.9,0.0011]
[1770670565804,0.97049678,2129.5,2128.7,0.0011]
[1770670565805,1.00071641,2129.2,2128.7,0.0011]
[1770670565970,1.00071641,2129.1,2128.7,0.0011]
[1770670566170,1.00071641,2129.0,2128.7,0.0011]
[1770670566370,0.97049678,2129.2,2128.7,0.0011]
[1770670566584,1.17426021,2129.0,2127.9,0.97800482]
[1770670566768,0.99956651,2128.9,2127.9,0.97800482]
[1770670566974,0.97049678,2128.7,2127.8,0.0011]
[1770670567189,0.97049678,2128.5,2127.6,0.0011]
[1770670567418,5.25106329,2128.4,2127.6,0.0011]
[1770670567602,0.99956651,2128.3,2127.6,0.0011]
[1770670567803,0.99956651,2128.2,2127.6,0.0011]
[1770670567979,0.99692287,2128.1,2127.4,0.0011]
[1770670568185,0.97049678,2128.3,2127.4,1.17622527]
[1770670568385,0.99516919,2128.2,2127.4,0.0011]
[1770670568585,1.17481203,2128.0,2127.4,0.0011]
[1770670570685,4.69898555,2128.2,2127.4,0.0011]
[1770670571284,0.97049678,2128.8,2127.4,0.97800482]
[1770670571590,3.282,2128.9,2127.4,0.97800482]
[1770670572687,1.17437053,2128.8,2127.6,0.97690482]
[1770670573290,2.20118419,2128.8,2127.6,0.97690482]
[1770670574716,2.20118419,2128.8,2127.7,1.17497767]
[1770670575494,0.0012,2128.5,2127.7,1.17497767]
[1770670579118,0.0012,2128.5,2127.8,0.97690482]
[1770670580400,0.9776006,2128.5,2127.7,1.17497767]
[1770670582229,1.17459124,2128.4,2127.6,4.70120394]
[1770670583631,0.9764006,2129.3,2127.7,0.94093067]
[1770670583938,1.03271748,2128.9,2127.7,0.94093067]
[1770670584437,1.17437053,2128.8,2127.8,1.17492245]
[1770670586628,1.17437053,2128.8,2127.8,0.94093067]
[1770670587430,1.17437053,2128.8,2127.8,0.94203067]
[1770670587633,0.0012,2128.6,2127.8,0.94203067]
[1770670588512,1.03271748,2128.5,2127.8,0.0011]
[1770670588707,1.17459124,2128.4,2127.6,0.94203067]
[1770670590133,0.99622432,2128.3,2127.6,0.94203067]
[1770670590333,1.17459124,2128.4,2127.6,0.94203067]
[1770670590535,0.99631295,2128.3,2127.6,0.94203067]
[1770670590707,1.17467889,2128.3,2127.7,1.17497767]
[1770670591426,0.99721971,2128.2,2127.7,1.17497767]
[1770670591733,1.17467889,2128.3,2127.7,1.17497767]
[1770670591931,0.99721215,2128.2,2127.7,1.17497767]
[1770670592116,1.17467889,2128.3,2127.7,1.17497767]
[1770670592430,0.9978946,2128.2,2127.7,1.17497767]
[1770670592632,1.17467889,2128.3,2127.7,1.17497767]
[1770670592939,0.0012,2128.6,2127.7,0.94093067]
[1770670594814,0.0012,2128.6,2127.8,1.17492245]
[1770670595020,0.0012,2128.6,2127.9,0.94093067]
[1770670597150,0.0012,2128.6,2128.0,2.1157427]
[1770670599142,0.0012,2128.6,2128.2,2.11563229]
[1770670599519,0.0012,2128.6,2128.2,1.17470162]
[1770670599719,0.0012,2128.6,2128.1,1.17471742]
[1770670600228,0.0012,2128.6,2128.2,0.0011]
[1770670600424,0.05631688,2129.0,2128.2,0.0011]
[1770670600630,0.0012,2128.4,2128.2,0.0011]
[1770670600807,0.0012,2128.4,2128.2,0.99059268]
[1770670601213,0.0012,2128.4,2128.3,0.98949268]
[1770670601943,0.0012,2128.4,2128.2,1.17576192]
[1770670602322,0.0012,2128.4,2128.2,0.0011]
[1770670602625,0.0012,2128.4,2128.0,0.0011]
[1770670602822,0.0012,2128.4,2128.1,1.17475675]
[1770670603159,0.0012,2128.4,2128.2,1.17469775]
[1770670603445,1.1741335,2129.3,2128.3,0.98949268]
[1770670604824,1.00214775,2129.2,2128.3,0.98949268]
[1770670605032,1.00214775,2129.1,2128.3,0.98949268]
[1770670605220,1.00214775,2129.0,2128.3,0.98949268]
[1770670605423,1.1741335,2129.3,2128.0,0.0011]
[1770670605424,11.39027262,2128.4,2128.0,0.99059268]
[1770670605622,11.39027262,2128.4,2127.6,0.0011]
[1770670605623,4.34146463,2128.3,2127.6,0.0011]
[1770670605844,1.00214775,2128.2,2127.6,0.0011]
[1770670606051,1.00214775,2128.1,2127.6,0.0011]
[1770670606349,1.00214775,2128.0,2127.6,0.0011]
[1770670606547,1.00214775,2127.9,2127.6,0.0011]
[1770670606750,1.00214775,2127.8,2127.6,0.0011]
[1770670607047,1.00214775,2127.7,2127.6,0.0011]
[1770670607958,1.17470514,2128.2,2127.6,0.94203067]
[1770670608149,1.00124634,2128.1,2127.6,0.94203067]
[1770670608444,1.00124634,2128.0,2127.6,0.94203067]
[1770670608644,1.00124634,2127.9,2127.6,0.0011]
[1770670608844,1.00124634,2127.8,2127.6,0.0011]
[1770670609146,1.17470514,2128.2,2127.6,0.0011]
[1770670609332,1.00116326,2128.1,2127.6,0.0011]
[1770670609534,1.00116326,2128.0,2127.6,0.0011]
[1770670609736,1.00116326,2127.9,2127.6,0.0011]
[1770670609933,1.00116326,2127.8,2127.6,0.0011]
[1770670610133,1.17474522,2128.2,2127.6,0.0011]
[1770670610430,1.000999,2128.1,2127.6,0.0011]
[1770670610631,1.000999,2128.0,2127.6,0.0011]
[1770670610825,1.000999,2127.9,2127.6,0.0011]
[1770670611024,1.000999,2127.8,2127.6,0.0011]
[1770670611226,1.000999,2127.7,2127.6,0.0011]
[1770670611446,1.000999,2127.7,2126.8,0.0011]
[1770670611447,1.1750329,2127.6,2126.8,0.0011]
[1770670611656,1.01923465,2127.4,2126.5,0.0031]
[1770670611824,0.05631688,2127.1,2126.5,0.0031]
[1770670612024,1.00016183,2127.0,2126.5,0.0031]
[1770670612259,1.00016183,2126.9,2126.5,2.15949042]
[1770670612421,3.284,2127.1,2126.5,2.15639042]
[1770670612749,0.99883065,2127.0,2126.6,0.0031]
[1770670612951,0.99875451,2126.9,2126.7,0.0011]
[1770670613153,3.284,2127.1,2126.7,0.0011]
[1770670613454,0.99869733,2127.0,2126.7,0.0011]
[1770670613627,2.174119,2126.9,2126.7,0.0011]
[1770670613828,0.99869733,2126.8,2126.7,0.0011]
[1770670614357,3.284,2127.1,2126.7,0.0011]
[1770670614555,4.45931159,2127.1,2126.8,0.0031]
[1770670614746,0.99619632,2127.0,2126.8,0.0031]
[1770670614949,4.45931159,2127.1,2126.8,0.0031]
[1770670615254,0.99621829,2127.0,2126.7,0.0011]
[1770670615454,4.35222246,2127.1,2126.7,0.0011]
[1770670615658,1.17486724,2127.9,2126.9,0.98077235]
[1770670615951,0.99575496,2127.8,2126.9,0.98077235]
[1770670616154,0.99575496,2127.7,2127.0,0.0031]
[1770670616362,0.99575496,2127.6,2127.0,0.0031]
[1770670616535,5.42178501,2127.9,2127.0,0.0031]
[1770670616740,0.99542912,2127.8,2127.0,0.0031]
[1770670616927,0.99542912,2127.7,2127.0,0.0031]
[1770670617133,0.99542912,2127.6,2127.0,0.0031]
[1770670617355,5.42178501,2127.9,2127.0,0.0031]
[1770670617533,0.99473403,2127.8,2127.0,0.0031]
[1770670617730,1.17497767,2127.7,2127.0,0.0031]
[1770670617925,0.99473403,2127.6,2127.0,0.0031]
[1770670618133,0.96291777,2127.5,2127.0,0.0031]
[1770670618368,0.05631688,2126.9,2126.2,0.98077235]
[1770670618551,0.05631688,2126.7,2125.1,5.6863961]
[1770670618749,0.99473403,2126.6,2125.6,4.70444298]
[1770670618954,1.05105091,2126.5,2125.6,1.17610502]
[1770670619256,0.99473403,2126.4,2125.5,1.17618722]
[1770670619453,0.96291777,2126.7,2125.6,1.17613117]
[1770670619694,3.284,2126.8,2125.7,0.05631688]
[1770670619695,0.99237345,2126.6,2125.7,0.05631688]
[1770670619830,1.175593,2126.6,2125.7,0.98077235]
[1770670620359,1.175593,2126.6,2125.5,0.05631688]
[1770670620657,1.175593,2126.6,2125.4,2.15702152]
[1770670620857,1.175593,2126.6,2125.5,1.03708923]
[1770670621269,1.175593,2126.6,2125.5,0.98077235]
[1770670621932,1.17541962,2126.9,2125.6,1.1761385]
[1770670622151,0.99184465,2126.8,2125.6,1.1761385]
[1770670622341,1.17541962,2126.9,2125.7,1.03708923]
[1770670623064,4.4603957,2127.0,2125.9,1.03708923]
[1770670623373,4.46037291,2127.0,2125.9,1.03708923]
[1770670624367,3.285,2127.0,2126.1,0.98077235]
[1770670624558,3.285,2127.0,2126.1,0.98187235]
[1770670624734,0.0012,2126.8,2126.1,0.98187235]
[1770670626164,0.0012,2126.8,2126.1,1.03818923]
[1770670626366,0.0012,2126.8,2126.2,2.15657895]
[1770670628862,0.0012,2126.8,2126.3,0.98077235]
[1770670630464,0.0012,2126.8,2126.4,1.17569601]
[1770670632250,5.66332039,2127.5,2126.4,1.17569601]
[1770670632466,0.99351865,2127.4,2126.4,1.17569601]
[1770670632763,5.66332039,2127.5,2126.4,1.17569601]
[1770670632970,0.9935355,2127.4,2126.4,1.17569601]
[1770670633267,5.66332039,2127.5,2126.4,1.17569601]
[1770670633435,0.99445364,2127.4,2126.4,1.17569601]
[1770670633639,0.99445364,2127.3,2126.4,1.17569601]
[1770670633836,0.96291777,2127.5,2126.5,0.98077235]
[1770670634065,3.286,2127.6,2126.5,0.98077235]
[1770670634066,0.99445221,2127.4,2126.5,0.98077235]
[1770670634240,0.99542041,2127.3,2126.5,0.98077235]
[1770670634563,3.286,2127.6,2126.6,1.17558544]
[1770670634765,0.99564156,2127.5,2126.7,0.98077235]
[1770670634963,3.286,2127.6,2126.7,0.98077235]
[1770670635164,0.99566363,2127.5,2126.7,0.98077235]
[1770670635348,0.99709518,2127.4,2126.7,0.98077235]
[1770670635552,3.286,2127.6,2126.7,0.98077235]
[1770670635748,1.1748874,2127.9,2126.7,1.03708923]
[1770670635958,0.9972015,2127.8,2126.7,1.03708923]
[1770670636137,0.9972015,2127.7,2126.7,1.03708923]
[1770670636342,0.9972015,2127.6,2126.7,1.03708923]
[1770670636638,2.13771183,2128.1,2126.9,0.98077235]
[1770670636844,0.99747919,2128.0,2126.9,0.98077235]
[1770670637043,0.99747919,2127.9,2126.9,0.98077235]
[1770670637243,0.99747919,2127.8,2126.9,0.98077235]
[1770670637444,0.99747919,2127.7,2126.9,0.98077235]
[1770670637664,0.002,2127.3,2126.9,0.98077235]
[1770670637867,0.002,2127.5,2126.9,0.98077235]
[1770670638873,0.002,2127.5,2127.0,2.15613671]
[1770670639270,0.002,2127.5,2127.1,0.98077235]
[1770670639476,5.42261947,2128.2,2127.1,1.03708923]
[1770670639797,0.99812859,2128.1,2127.1,1.03708923]
[1770670639960,0.99812859,2128.0,2127.1,1.03708923]
[1770670640162,10.51691738,2127.4,2126.5,0.2335703]
[1770670640467,10.51691738,2127.4,2126.1,0.0011]
[1770670640468,0.92353782,2127.2,2126.1,0.0011]
[1770670640796,1.05444547,2127.3,2126.1,0.0011]
[1770670640797,0.9798547,2127.0,2126.1,0.0011]
[1770670640994,0.92353782,2126.8,2126.1,0.0011]
[1770670641190,0.99812859,2126.7,2126.1,0.0011]
[1770670641361,0.99812859,2126.6,2126.1,0.0011]
[1770670641561,0.92353782,2126.8,2126.1,0.0011]
[1770670641562,0.99812859,2126.5,2126.1,0.0011]
[1770670641755,0.99812859,2126.4,2126.1,0.0011]
[1770670642059,0.92353782,2126.8,2126.1,0.0011]
[1770670642060,0.99812859,2126.3,2126.1,0.0011]
[1770670642396,0.99764229,2126.2,2126.1,0.0011]
[1770670643587,0.92353782,2127.0,2126.1,0.0011]
[1770670643784,1.92102583,2126.9,2126.1,0.0011]
[1770670643989,0.99748801,2126.8,2126.1,0.0011]
[1770670644187,0.99748801,2126.7,2126.1,0.0011]
[1770670644365,0.99748801,2126.6,2126.1,0.0011]
[1770670644562,0.99748801,2126.5,2126.1,0.0011]
[1770670644761,0.92353782,2126.9,2126.1,0.0011]
[1770670644762,0.99748801,2126.4,2126.1,0.0011]
[1770670645077,0.99748801,2126.3,2126.1,0.0011]
[1770670645268,0.99748801,2126.2,2126.1,0.0011]
[1770670645474,0.99727666,2126.2,2126.1,0.0011]
[1770670646393,0.99727666,2126.2,2125.9,0.0011]
[1770670646394,1.92081448,2126.2,2125.9,0.0011]
[1770670646692,0.99727666,2126.1,2125.9,0.0011]
[1770670646876,0.99727666,2126.0,2125.9,0.0011]
[1770670647189,1.17570313,2126.4,2125.9,0.0011]
[1770670647390,0.99701623,2126.3,2125.9,0.0011]
[1770670647692,0.99727916,2126.2,2125.9,0.0011]
[1770670647894,1.1756754,2126.5,2125.9,0.0011]
[1770670648071,0.99735876,2126.4,2125.9,0.0011]
[1770670648272,0.99735876,2126.3,2125.9,0.0011]
[1770670648471,1.17565373,2126.5,2125.9,0.0011]
[1770670648679,0.99728427,2126.4,2125.9,0.0011]
[1770670648872,0.99728427,2126.3,2125.9,0.0011]
[1770670649083,4.46158699,2126.6,2125.9,0.0011]
[1770670649287,1.17505697,2127.6,2126.4,1.00593652]
[1770670649487,0.92353782,2127.5,2126.1,0.94961964]
[1770670649685,0.92353782,2127.5,2126.3,0.001]
[1770670649968,0.002,2126.6,2126.3,0.001]
[1770670652268,0.002,2126.6,2126.3,0.95061964]
[1770670652792,0.002,2126.6,2126.3,0.001]
[1770670653771,0.002,2126.8,2126.3,0.05731688]
[1770670653979,0.002,2126.8,2126.3,0.95061964]
[1770670655289,0.002,2126.8,2126.4,1.17569601]
[1770670657496,0.002,2126.8,2126.4,2.12531565]
[1770670658010,1.17508813,2127.5,2126.4,2.12531565]
[1770670658993,2.09862595,2127.5,2126.4,2.12531565]
[1770670661202,0.9982179,2127.4,2126.4,2.12531565]
[1770670661522,1.17525385,2127.2,2126.4,2.12531565]
[1770670661688,0.9982179,2127.1,2126.4,2.12531565]
[1770670661888,1.17525385,2127.2,2126.4,2.12531565]
[1770670662090,0.99786741,2127.1,2126.4,2.12531565]
[1770670662302,1.17525385,2127.2,2126.4,2.12531565]
[1770670662485,0.99788172,2127.1,2126.6,0.001]
[1770670662681,1.17525385,2127.2,2126.6,0.001]
[1770670662912,0.9979794,2127.1,2126.6,0.001]
[1770670663120,1.17525385,2127.2,2126.6,0.001]
[1770670663287,0.99796801,2127.1,2126.6,0.001]
[1770670663493,1.17525385,2127.2,2126.6,0.001]
[1770670663690,0.99793646,2127.1,2126.6,0.001]
[1770670663890,1.17721316,2127.3,2126.6,0.001]
[1770670664096,0.99789056,2127.2,2126.6,0.001]
[1770670664308,0.99789056,2127.1,2126.6,0.001]
[1770670664485,1.17721316,2127.3,2126.6,0.001]
[1770670664686,0.99791941,2127.2,2126.6,0.001]
[1770670664886,0.99791941,2127.1,2126.6,0.001]
[1770670665081,2.10075098,2127.3,2126.6,0.001]
[1770670665286,0.92353782,2127.1,2126.6,0.001]
[1770670666099,0.002,2127.3,2126.6,0.001]
[1770670666419,0.99797352,2127.2,2126.6,0.001]
[1770670666716,0.99797352,2127.1,2126.6,0.001]
[1770670666928,0.002,2127.3,2126.6,0.001]
[1770670667088,0.998232,2127.2,2126.6,0.001]
[1770670667286,0.998232,2127.1,2126.6,0.001]
[1770670667482,0.002,2127.3,2126.6,0.001]
[1770670667706,0.99868027,2127.2,2126.6,0.001]
[1770670667903,0.99868027,2127.1,2126.6,0.001]
[1770670668117,1.1753071,2127.2,2126.6,0.001]
[1770670668316,0.99868193,2127.1,2126.6,0.001]
[1770670668491,0.99868193,2127.0,2126.6,0.001]
[1770670668814,1.1753071,2127.2,2126.6,0.001]
[1770670669025,0.99901454,2127.1,2126.6,0.001]
[1770670669223,0.99901454,2127.0,2126.6,0.001]
[1770670669401,1.1753071,2127.2,2126.6,0.001]
[1770670669603,0.99955232,2127.1,2126.6,0.001]
[1770670669915,0.99955232,2127.0,2126.6,0.001]
[1770670670219,5.62915139,2127.3,2126.6,0.001]
[1770670670421,0.99954929,2127.2,2126.6,0.001]
[1770670670721,0.99954929,2127.1,2126.6,0.001]
[1770670671018,0.99954929,2127.0,2126.6,0.001]
[1770670671217,5.62915139,2127.3,2126.6,0.001]
[1770670671418,0.99965574,2127.2,2126.6,0.001]
[1770670671601,0.99965574,2127.1,2126.6,0.001]
[1770670671800,0.99965574,2127.0,2126.6,0.001]
[1770670672001,5.62915139,2127.3,2126.6,0.001]
[1770670672231,0.99960334,2127.2,2126.6,0.001]
[1770670672525,0.99960334,2127.1,2126.6,0.001]
[1770670672817,0.99960334,2127.0,2126.6,0.001]
[1770670673121,1.17529975,2127.2,2126.6,0.001]
[1770670673304,0.99969902,2127.1,2126.6,0.001]
[1770670673502,0.99969902,2127.0,2126.6,0.001]
[1770670673722,1.17529975,2127.2,2126.6,0.001]
[1770670673913,0.9997021,2127.1,2126.6,0.001]
[1770670674099,0.9997021,2127.0,2126.6,0.001]
[1770670674424,2.10346666,2127.3,2126.6,0.001]
[1770670674598,0.99986786,2127.2,2126.7,0.98215972]
[1770670674798,0.002,2127.3,2126.7,0.98215972]
[1770670674992,0.002,2127.3,2126.8,0.001]
[1770670675192,0.002,2127.3,2126.8,0.92684284]
[1770670675518,0.002,2127.0,2126.8,0.92684284]
[1770670675825,0.002,2127.2,2126.8,0.92684284]
[1770670676431,0.002,2127.2,2126.9,1.17541962]
[1770670682318,0.002,2127.5,2127.0,0.92584284]
[1770670682828,0.002,2127.5,2126.9,1.17541962]
[1770670683204,1.00145669,2127.4,2126.9,1.17541962]
[1770670683403,0.002,2127.5,2127.0,0.92584284]
[1770670683634,0.002,2127.5,2127.1,1.1753091]
[1770670683933,1.00119731,2127.4,2127.0,1.17536005]
[1770670684112,0.002,2127.5,2127.0,1.17536005]
[1770670684312,0.002,2127.5,2127.0,2.10120289]
[1770670686613,0.002,2127.5,2127.1,0.92584284]
[1770670686847,0.002,2128.1,2127.4,0.98215972]
[1770670687010,0.0012,2128.4,2127.7,0.92584284]
[1770670687340,1.92657262,2128.3,2127.6,3.285]
[1770670687510,1.00035043,2128.2,2127.6,3.285]
[1770670687707,0.92622219,2128.3,2127.7,1.17497767]
[1770670688041,0.0012,2128.4,2127.7,1.17497767]
[1770670688342,0.99950141,2128.3,2127.7,1.17497767]
[1770670688526,0.0012,2128.4,2127.7,1.17497767]
[1770670688705,0.99866086,2128.3,2127.7,1.17497767]
[1770670688908,0.0012,2128.4,2127.7,1.17497767]
[1770670689110,0.0012,2128.4,2127.7,2.10082051]
[1770670689538,1.17579835,2128.4,2127.7,1.17497767]
[1770670689850,0.0012,2128.4,2127.7,1.17497767]
[1770670690916,0.92742219,2128.4,2127.7,1.17497767]
[1770670691719,1.17464643,2128.3,2127.7,1.17497767]
[1770670692114,2.10205492,2128.4,2127.7,1.17497767]
[1770670692512,0.92622219,2128.3,2127.7,1.17497767]
[1770670692716,0.92622219,2128.1,2127.4,1.1751319]
[1770670692936,0.92622219,2127.9,2127.4,1.17513943]
[1770670693135,0.92622219,2128.2,2127.5,1.1750839]
[1770670693338,0.99671933,2128.1,2127.6,1.17501601]
[1770670693513,0.99671933,2128.0,2127.4,1.17510029]
[1770670693723,0.99671933,2128.0,2127.1,4.70118624]
[1770670693922,2.17153593,2128.0,2127.2,0.92584284]
[1770670694142,1.1748166,2128.0,2127.2,0.92584284]
[1770670695448,2.10103879,2128.0,2127.1,4.70118624]
[1770670695815,2.10103879,2128.0,2127.1,5.62702908]
[1770670696638,1.1748166,2128.0,2127.2,0.92584284]
[1770670698137,0.99716018,2127.9,2127.3,1.1751986]
[1770670698311,1.1748166,2128.0,2127.3,1.1751986]
[1770670698510,0.99739554,2127.9,2127.3,1.1751986]
[1770670698712,1.1748166,2128.0,2127.3,1.1751986]
[1770670698916,0.99739359,2127.9,2127.3,1.1751986]
[1770670699114,1.1748166,2128.0,2127.3,1.1751986]
[1770670699349,0.99735484,2127.9,2127.3,1.1751986]
[1770670699516,1.1748166,2128.0,2127.3,1.1751986]
[1770670699716,0.99752565,2127.9,2127.5,0.0011]
[1770670699946,1.1748166,2128.0,2127.5,0.0011]
[1770670700242,0.99751067,2127.9,2127.5,0.0011]
[1770670700444,1.1748166,2128.0,2127.5,0.0011]
[1770670700624,0.99784078,2127.9,2127.5,0.0011]
[1770670700828,1.1748166,2128.0,2127.5,0.0011]
[1770670701021,0.99784945,2127.9,2127.5,0.0011]
[1770670701339,1.1748166,2128.0,2127.5,0.0011]
[1770670701532,0.99812589,2127.9,2127.5,0.0011]
[1770670701740,2.10215516,2128.0,2127.5,0.0011]
[1770670702050,0.99812595,2127.9,2127.5,0.0011]
[1770670702349,2.10215516,2128.0,2127.5,0.0011]
[1770670702540,0.99857737,2127.9,2127.5,0.0011]
[1770670702746,2.10215516,2128.0,2127.5,0.0011]
[1770670702956,0.99851018,2127.9,2127.5,0.0011]
[1770670703120,1.1748166,2128.0,2127.5,0.0011]
[1770670703449,0.99838649,2127.9,2127.5,0.0011]
[1770670703629,1.1748166,2128.0,2127.5,0.0011]
[1770670703818,0.99874585,2127.9,2127.5,0.0011]
[1770670704013,1.1748166,2128.0,2127.5,0.0011]
[1770670704220,0.99834518,2127.9,2127.5,0.0011]
[1770670704419,1.1748166,2128.0,2127.5,0.0011]
[1770670704651,0.99876865,2127.9,2127.5,0.0011]
[1770670704852,1.1748166,2128.0,2127.5,0.0011]
[1770670705048,0.99830872,2127.9,2127.5,0.0011]
[1770670705350,1.1748166,2128.0,2127.5,0.0011]
[1770670705351,0.99843429,2127.8,2127.5,0.0011]
[1770670705552,1.1748166,2128.0,2127.5,0.0011]
[1770670705749,0.998603,2127.9,2127.5,0.97738961]
[1770670705950,0.0012,2128.1,2127.5,0.0011]
[1770670706120,0.998769,2128.0,2127.5,0.0011]
[1770670706320,0.998769,2127.9,2127.5,0.0011]
[1770670706520,0.0012,2128.1,2127.5,0.0011]
[1770670706748,0.99892371,2128.0,2127.5,0.0011]
[1770670706953,0.99892371,2127.9,2127.5,0.0011]
[1770670707162,0.92853856,2128.1,2127.5,0.0011]
[1770670707317,0.9991563,2128.0,2127.5,0.0011]
[1770670707522,0.9991563,2127.9,2127.5,0.0011]
[1770670707742,0.92853856,2128.1,2127.5,0.0011]
[1770670707937,0.999154,2128.0,2127.5,0.0011]
[1770670708158,0.999154,2127.9,2127.5,0.0011]
[1770670708357,0.92853856,2128.1,2127.5,0.0011]
[1770670708535,0.99933058,2128.0,2127.5,0.0011]
[1770670708865,0.99933058,2127.9,2127.5,0.0011]
[1770670709068,2.10331393,2128.1,2127.5,0.0011]
[1770670709225,0.99916789,2128.0,2127.5,0.0011]
[1770670709427,0.99916789,2127.9,2127.5,0.0011]
[1770670709642,2.10331393,2128.1,2127.5,0.0011]
[1770670709842,0.99933116,2128.0,2127.5,0.0011]
[1770670710150,0.99933116,2127.9,2127.5,0.0011]
[1770670710446,1.17597537,2128.1,2127.5,0.0011]
[1770670710657,0.99898252,2128.0,2127.5,2.15247774]
[1770670710824,0.99898252,2127.9,2127.5,2.15247774]
[1770670711152,0.0012,2128.1,2127.6,1.03260649]
[1770670711945,0.0012,2128.1,2127.7,0.0011]
[1770670712151,0.0012,2128.1,2127.7,0.97738961]
[1770670712327,0.0012,2128.1,2127.7,0.0011]
[1770670712531,0.0012,2127.8,2127.7,0.0011]
[1770670712836,0.0012,2128.1,2127.7,0.97738961]
[1770670714427,0.0012,2128.1,2127.7,0.0011]
[1770670717961,0.0012,2128.4,2128.0,7.95884597]
[1770670718260,0.92733856,2128.9,2128.1,0.97628961]
[1770670718444,0.99891077,2128.8,2128.2,7.95884597]
[1770670718650,0.99891077,2128.7,2128.2,7.95884597]
[1770670718847,0.92733856,2128.9,2128.3,1.17464643]
[1770670719057,0.99881093,2128.8,2128.3,1.17464643]
[1770670719354,0.99881093,2128.7,2128.3,1.17464643]
[1770670719568,0.92733856,2129.1,2128.3,1.17464643]
[1770670719750,0.92733856,2129.5,2128.6,0.97628961]
[1770670719967,0.99857708,2129.4,2128.7,0.97628961]
[1770670720264,0.92733856,2129.5,2128.7,0.97628961]
[1770670720461,0.99731192,2129.4,2128.7,0.97628961]
[1770670720760,0.92733856,2129.5,2128.8,1.17437053]
[1770670724044,0.92733856,2129.4,2128.8,1.17437053]
[1770670724470,0.0012,2129.3,2128.8,1.17437053]
[1770670724837,0.0012,2129.3,2128.7,4.69748214]
[1770670726051,0.0012,2129.3,2128.7,5.67377175]
[1770670726758,0.0012,2129.3,2128.8,0.97628961]
[1770670726948,0.0012,2129.3,2128.9,1.17431537]
[1770670728165,0.92733856,2129.6,2128.9,1.17431537]
[1770670729346,0.92733856,2129.6,2128.9,2.15060498]
[1770670729742,0.93004079,2129.8,2129.0,0.94994548]
[1770670729964,0.93004079,2129.8,2128.9,1.17431537]
[1770670730365,0.93004079,2129.8,2128.7,1.1744031]
[1770670730677,0.98635767,2129.8,2128.1,0.94994548]
[1770670730875,0.93004079,2129.8,2128.5,1.17451573]
[1770670731172,0.93004079,2129.7,2128.7,0.94994548]
[1770670731862,0.93004079,2129.7,2128.6,4.69748214]
[1770670733864,0.93004079,2129.5,2128.5,1.17448087]
[1770670734478,0.93004079,2129.5,2128.5,2.12442635]
[1770670735061,0.93004079,2129.5,2128.5,1.17448087]
[1770670735258,0.93004079,2129.5,2128.4,1.17455511]
[1770670735856,0.93004079,2129.5,2128.1,2.1247023]
[1770670735857,0.93004079,2129.3,2128.1,2.1247023]
[1770670736678,0.93004079,2129.3,2128.2,1.00626236]
[1770670736881,0.93004079,2129.3,2128.8,0.0011]
[1770670738170,1.17414991,2129.2,2128.8,0.0011]
[1770670738366,0.93004079,2129.1,2128.8,0.0011]
[1770670740388,3.282,2129.2,2128.5,0.0011]
[1770670740580,5.38624082,2129.2,2128.5,0.0011]
[1770670740888,4.21204079,2129.2,2128.5,0.0011]
[1770670741269,5.38619451,2129.2,2128.5,0.0011]
[1770670741777,4.21204079,2129.2,2128.5,0.0011]
[1770670741963,3.282,2129.2,2128.5,0.0011]
[1770670742161,0.93004079,2129.1,2128.5,0.0011]
[1770670742485,0.93004079,2128.9,2128.5,0.0011]
[1770670743291,0.93004079,2128.5,2127.7,0.0011]
[1770670743469,0.93004079,2128.0,2127.7,0.0011]
[1770670743868,0.99636916,2127.9,2127.7,0.0011]
[1770670744190,9.12837904,2127.9,2127.5,0.0011]
[1770670744490,9.12837904,2127.9,2127.3,0.0011]
[1770670744491,7.95346345,2127.7,2127.3,0.0011]
[1770670744871,0.93004079,2127.8,2127.3,0.0011]
[1770670745270,1.92467689,2127.7,2127.3,0.0011]
[1770670745459,0.99461547,2127.6,2127.3,0.0011]
[1770670745663,0.93004079,2127.7,2127.3,0.0011]
[1770670745865,0.93004079,2127.5,2126.8,0.001]
[1770670746089,0.93004079,2127.7,2126.9,1.17541906]
[1770670746261,0.93004079,2128.3,2127.0,0.94994548]
[1770670746465,8.86767633,2128.8,2127.4,0.94994548]
[1770670746466,0.99369762,2128.2,2127.4,0.94994548]
[1770670746762,0.93004079,2128.6,2127.4,0.94994548]
[1770670746763,3.283,2128.5,2127.4,0.94994548]
[1770670746986,0.93004079,2128.4,2127.1,1.00626236]
[1770670747385,0.93004079,2128.4,2127.1,0.94994548]
[1770670747590,0.93004079,2128.4,2126.9,1.17541906]
[1770670748388,0.93004079,2128.2,2127.1,1.1753091]
[1770670749178,0.93004079,2128.2,2127.3,0.0011]
[1770670749489,0.93004079,2128.0,2127.0,0.0011]
[1770670749797,0.93004079,2127.8,2127.0,0.0011]
[1770670749987,0.93004079,2127.8,2127.0,1.17645644]
[1770670750288,0.93004079,2127.8,2127.0,1.17646351]
[1770670750508,2.10501846,2127.7,2127.0,0.0011]
[1770670750708,5.38801846,2127.7,2127.0,0.0011]
[1770670751808,0.93004079,2127.6,2127.0,0.0011]
[1770670752203,1.17490879,2127.9,2127.0,0.0011]
[1770670752398,4.45790879,2127.9,2127.0,1.17646436]
[1770670752709,5.38794958,2127.9,2127.0,1.17646436]
[1770670752909,0.93004079,2127.8,2127.0,0.0011]
[1770670754496,0.93004079,2127.6,2127.0,0.0011]
[1770670756437,3.284,2128.3,2127.3,1.1751986]
[1770670756788,3.284,2128.3,2127.3,2.12514408]
[1770670756986,3.284,2128.3,2127.4,0.94994548]
[1770670757400,3.284,2128.3,2127.3,1.1751986]
[1770670758521,1.17470162,2128.2,2127.5,1.17508813]
[1770670759602,2.11424042,2128.2,2127.4,1.17510313]
[1770670760400,2.11424042,2128.2,2127.0,0.0011]
[1770670760401,0.9395388,2128.1,2127.0,0.0011]
[1770670760726,2.11424042,2128.2,2127.3,1.17519778]
[1770670760926,0.9395388,2128.1,2127.3,1.17519778]
[1770670761218,0.9395388,2128.1,2127.1,4.7011357]
[1770670761422,0.9395388,2128.1,2127.3,0.0011]